Cogmind - Beta 15 @@@ ROGUE MODE // 2025.06.21 @ 14:43:40 Player: CL-1C0 Result: Destroyed by QF-9WI(R) with Subdweller Beam Cannon Performance ------------- Evolutions (0) 0 Regions Visited (2) 400 Robots Destroyed (3) 15 Value Destroyed (62) 62 Prototype IDs (2) 40 Alien Tech Used (0) 0 Bonus (0) 0 TOTAL SCORE: 517 Bonus ------- None Cogmind --------- Core Integrity 0/250 Matter 201/300 Energy 115/125 System Corruption 0% Temperature Cool (9) Movement Core (450) Ox8 Location -10/Subcaves Parts ------- > --- POWER (1) -------- Light Ion Engine > --- PROPULSION (2) --- Wheel > --- UTILITY (2) ------ Large Storage Unit Subdweller Optics > --- WEAPON (2) ------- Light Assault Rifle > --- INVENTORY (15) --- Wheel Subdweller Monowheel Structural Scanner Terrain Scanner Multitool Enhanced Flamer Hammer Peak State ------------ > --- POWER ------------ Light Ion Engine > --- PROPULSION ------- Light Treads Light Treads > --- UTILITY ---------- Large Storage Unit Subdweller Optics > --- WEAPON ----------- Assault Rifle Subdweller Machine Gun > --- INVENTORY -------- Light Ion Engine Wheel Wheel Subdweller Monowheel Structural Scanner Terrain Scanner EM Pulse Gun Light Assault Rifle Multitool Enhanced Flamer Hammer [Rating: 10] Favorites ----------- Power Light Ion Engine Engine Light Ion Engine Propulsion Light Treads Treads Light Treads Leg Aluminum Leg Wheel Wheel Utility Large Storage Unit Device Structural Scanner Storage Large Storage Unit Weapon Assault Rifle Energy Gun EM Pulse Gun Ballistic Gun Assault Rifle Impact Weapon Hammer Build | -11 -10 -10 ------- Run | Yrd Mat Sub Slots Evolved . | . . . Power . | . . . Propulsion . | . . . Utility . | . . . Weapon . | . . . Parts Attached 12 | 2 1 9 Power 1 | . . 1 Engine 1 | . . 1 Core . | . . . Reactor . | . . . Propulsion 3 | 2 . 1 Treads 2 | 2 . . Leg . | . . . Wheel 1 | . . 1 Hover . | . . . Flight . | . . . Utility 3 | . 1 2 Device 2 | . . 2 Storage 1 | . 1 . Processor . | . . . Hackware . | . . . Protection . | . . . Artifact . | . . . Weapon 5 | . . 5 Energy Gun 1 | . . 1 Energy Cannon . | . . . Ballistic Gun 3 | . . 3 Ballistic Cannon . | . . . Launcher . | . . . Special Weapon . | . . . Impact Weapon 1 | . . 1 Slashing Weapon . | . . . Piercing Weapon . | . . . Special Melee Weapon . | . . . Unidentified Prototypes . | . . . Parts Lost 6 | . . 6 Power 1 | . . 1 Propulsion 2 | . . 2 Utility . | . . . Weapon 3 | . . 3 Highest Loss Streak 6 | . . 6 To Critical Strikes . | . . . Average Backups 6 | 7 5 7 Power 1 | 1 1 1 Propulsion 2 | 5 2 2 Utility 1 | . 1 1 Weapon 2 | 1 1 2 Tool/Special . | . . . Unused Backups 4 | . . 4 Power . | . . . Propulsion 1 | . . 1 Utility 1 | . . 1 Weapon 1 | . . 1 Tool/Special 1 | . . 1 Average Slot Usage (%) 93 | . 85 97 Engine 13 | . 14 13 Treads 27 | . 28 27 Device 8 | . . 12 Storage 14 | . 14 14 Ballistic Gun 27 | . 28 27 Peak Build Rating 10 | 6 7 10 Average Rating 7 | 5 6 7 On Entrance 6 | 6 6 6 Naked Turns . | . . . Heaviest Build 31 | 11 26 31 Greatest Support 40 | 40 40 40 Greatest Overweight (x) 1 | . . 1 Average Overweight (x) . | . . . Largest Inventory Capacity 15 | 8 15 15 Average Capacity 14 | 8 13 15 Most Carried 11 | 8 7 11 Average Carried 6 | 6 5 7 Final Capacity 15 | 8 15 15 Final Carried 7 | 4 7 7 Class Distribution -------------------- 100% | Mutant Dominant Class ---------------- Mutant | -10/Materials Mutant | -10/Subcaves Resources | -11 -10 -10 ----------- Run | Yrd Mat Sub Matter Collected 330 | 200 58 72 Remotely . | . . . Salvage Created 179 | . 126 53 Parts 7 | . 3 4 Haulers Intercepted . | . . . Recyclers Shooed 1 | . 1 . Parts Field Recycled . | . . . Retrieved Matter . | . . . Parts Self-Destructed . | . . . Prevented . | . . . Kills | -11 -10 -10 ------- Run | Yrd Mat Sub Combat Hostiles Destroyed 1 | . . 1 Guns 1 | . . 1 Classes Destroyed 3 | . 2 1 Recycler 1 | . 1 . Watcher 1 | . 1 . Subdweller 1 | . . 1 Best Kill Streak 2 | . 2 1 Combat Bots Only 1 | . . 1 Max Kills in Single Turn 1 | . 1 1 Gunslinging . | . . . Exploded . | . . . Melee . | . . . Uniques/NPCs Destroyed . | . . . Combat | -11 -10 -10 -------- Run | Yrd Mat Sub Hostile Shots Fired 55 | . . 55 Missed 15 | . . 15 Hits 40 | . . 40 Projectile 40 | . . 40 Damage Taken 954 | . . 954 Core 277 | . . 277 Absorbed by Shields . | . . . Core Remaining (%) 100 | 100 . . Volleys Fired 32 | . 10 22 Largest 2 | . 2 2 Hottest 60 | . 40 60 Shots Fired 57 | . 20 37 Gun 57 | . 20 37 Cannon . | . . . Launcher . | . . . Special . | . . . Kinetic 56 | . 20 36 Thermal . | . . . Explosive . | . . . Electromagnetic 1 | . . 1 Robot Hit Streak 29 | . 11 29 Robot Miss Streak 2 | . 1 2 Penetration Max . | . . . Secondary Targets . | . . . Shots Hit Robots 48 | . 17 31 Core Hits 10 | . 5 5 Critical Kills . | . . . Critical Parts Destroyed . | . . . Critical Strikes . | . . . Melee Attacks 1 | . . 1 Impact 1 | . . 1 Slashing . | . . . Piercing . | . . . Sneak Attacks . | . . . Combat Hostiles . | . . . Follow-up Attacks . | . . . Damage Inflicted 575 | . 186 389 Guns 575 | . 186 389 Cannons . | . . . Explosions . | . . . Melee . | . . . Ramming . | . . . Kinetic 564 | . 186 378 Thermal . | . . . Explosive . | . . . Electromagnetic 11 | . . 11 Impact . | . . . Slashing . | . . . Piercing . | . . . Highest Corruption . | . . . Average Corruption . | . . . Corruption Purged . | . . . Corruption Blocked . | . . . Overload Shots . | . . . Overflow Damage . | . . . Projectiles . | . . . Explosions . | . . . Melee . | . . . Knockbacks . | . . . Impact . | . . . Kinetic . | . . . Secondary . | . . . Self-Inflicted Damage . | . . . Shots . | . . . Rammed . | . . . Targets Rammed . | . . . Kicked . | . . . Crushed . | . . . Highest Temperature . | . . . Average Temperature . | . . . Received Heat Transfer 162 | . . 162 Siege Activations . | . . . Martial Activations . | . . . Shielding Activations . | . . . Robots Disrupted . | . . . Combat Hostiles . | . . . Robots Corrupted . | . . . Combat Hostiles . | . . . Parts Fried . | . . . Impact Corruptions . | . . . Robots Melted . | . . . Combat Hostiles . | . . . Parts Melted . | . . . Heat Transferred . | . . . Parts Sabotaged . | . . . Parts Stolen . | . . . Parts Stripped . | . . . Power Chain Reactions . | . . . Alert | -11 -10 -10 ------- Run | Yrd Mat Sub Maximum Alert Level . | . . . Low Security (%) 100 | 100 100 . Level 1 . | . . . Level 2 . | . . . Level 3 . | . . . Level 4 . | . . . Level 5 . | . . . High Security . | . . . Max Security . | . . . Peak Influence 12 | . 12 . Initial . | . . . Average 1 | . 1 . Influence Increases 23 | . 23 . Destroy 0b10 Robot/NC 10 | . 10 . Destroy Leader 2 | . 2 . Successful Hack 11 | . 11 . Influence Decreases 23 | . 23 . Time Decay 23 | . 23 . Squads Dispatched . | . . . Investigation . | . . . Extermination . | . . . Reinforcement . | . . . Assault . | . . . Garrison . | . . . Intercept . | . . . Searches Triggered . | . . . Construction Impeded . | . . . Haulers Reinforced . | . . . Active Scanning Responses . | . . . Cargo Convoy Interrupts . | . . . Stealth | -11 -10 -10 --------- Run | Yrd Mat Sub Distress Signals . | . . . Communications Jammed . | . . . Distress Signals . | . . . Times Spotted 6 | . 2 4 Peak Tracking Total 3 | . 1 3 Tactical Retreats . | . . . Traps | -11 -10 -10 ------- Run | Yrd Mat Sub Traps Triggered . | . . . Indirectly . | . . . Trap Hack Attempts . | . . . Triggered . | . . . Disarmed . | . . . Reprogrammed . | . . . Reused . | . . . Traps Extracted . | . . . Installed . | . . . Triggered . | . . . Machines | -11 -10 -10 ---------- Run | Yrd Mat Sub Machines Disabled . | . . . Max in Single Turn . | . . . Machines Repaired . | . . . Machines Dismantled . | . . . Machines Sabotaged . | . . . Overloaded Fab Kills . | . . . Hacking | -11 -10 -10 --------- Run | Yrd Mat Sub Machines Accessed 4 | . 3 1 Terminals 3 | . 3 . Fabricators . | . . . Repair Stations . | . . . Recycling Units . | . . . Scanalyzers . | . . . Garrison Access . | . . . Total Hacks 12 | . 8 4 Successful 7 | . 3 4 Failed 5 | . 5 . Catastrophic 1 | . 1 . Database Lockouts . | . . . Manual 7 | . 7 . Terminals 8 | . 8 . Fabricators . | . . . Repair Stations . | . . . Recycling Units . | . . . Scanalyzers . | . . . Garrison Access . | . . . Terminal Hacks 7 | . 3 4 Record 4 | . . 4 Robot Analysis 2 | . 2 . Prototype ID Bank 1 | . 1 . Fabricator Hacks . | . . . Repair Station Hacks . | . . . Recycling Unit Hacks . | . . . Scanalyzer . | . . . Garrison Access Hacks . | . . . Unauthorized Hacks . | . . . Terminals . | . . . Fabricators . | . . . Repair Stations . | . . . Recycling Units . | . . . Scanalyzers . | . . . Garrison Access . | . . . Data Cores Recovered . | . . . Used . | . . . Hacking Detections 3 | . 3 . Full Trace Events . | . . . Feedback Events . | . . . Feedback Blocked . | . . . Robot Schematics Acquired . | . . . Robots Built . | . . . Authchips . | . . . Time . | . . . Total Robot Build Rating . | . . . Part Schematics Acquired . | . . . Parts Built . | . . . Authchips . | . . . Time . | . . . Total Part Build Rating . | . . . Parts Repaired . | . . . Time . | . . . Parts Recycled . | . . . Recycled Matter . | . . . Retrieved Matter . | . . . Retrieved Components . | . . . Parts Scanalyzed . | . . . Part Schematics Acquired . | . . . Parts Damaged . | . . . Bothacking | -11 -10 -10 ------------ Run | Yrd Mat Sub Used RIF Installer . | . . . Robots Hacked . | . . . Non-combat . | . . . Combat . | . . . Robot Hacks Applied . | . . . Relay Couplers Released . | . . . Fabnet Peak Effective % . | . . . Robots Rewired . | . . . Allies Hacked . | . . . Hacks Repelled . | . . . Allies | -11 -10 -10 -------- Run | Yrd Mat Sub Total Allies . | . . . Largest Group . | . . . Highest-Rated Group . | . . . Highest-Rated Ally . | . . . Total Orders . | . . . Ally Attacks . | . . . Total Damage . | . . . Kills . | . . . Allies Corrupted . | . . . Allies Melted . | . . . Intel | -11 -10 -10 ------- Run | Yrd Mat Sub Active Infowar (turns) 702 | . . 702 Optics 118 | . . 118 Structural 584 | . . 584 Robot Analysis Total 2 | . 2 . Derelict Logs Recovered . | . . . Drone Launches . | . . . Drone Recoveries . | . . . Exploration | -11 -10 -10 ------------- Run | Yrd Mat Sub Turns Passed 1073 | 5 322 746 Spaces Moved 591 | 1 180 410 Core . | . . . Treads 591 | 1 180 410 Legs . | . . . Wheels . | . . . Hover . | . . . Flight . | . . . Fastest Speed 160 | 160 160 160 Average Speed 160 | 160 160 160 Slowest Speed 240 | 160 160 240 Overloaded Moves . | . . . Propulsion Burnouts . | . . . Robots Hopped . | . . . Potential Cave-ins . | . . . Cave-ins Triggered . | . . . Exploration Rate (%) 21 | 2 37 24 Regions Visited 2 Branch Regions 1 Pre-discovered Areas . | . . . Known Exits Taken . | . . . Unknown Exits Taken 2 | 1 1 . Scrap Searched 1 | . . 1 Spaces Dug . | . . . Terrain Destroyed . | . . . Melee . | . . . Projectile . | . . . AOE . | . . . Terrain Rammed . | . . . Walls Destroyed . | . . . Machines Disabled . | . . . Actions | -11 -10 -10 --------- Run | Yrd Mat Sub Total 659 | 6 196 457 Wait 10 | . 2 8 Move 589 | . 179 410 Hop . | . . . Pick Up 7 | . 3 4 Fast Attach 2 | . 1 1 Attach 7 | 2 . 5 Detach 3 | 2 . 1 Swap 5 | . . 5 Drop 3 | 2 1 . Fire 32 | . 10 22 Melee 1 | . . 1 Ram . | . . . Kick . | . . . Crush . | . . . Escape Stasis . | . . . Rewire . | . . . Trap . | . . . Miscellaneous . | . . . Route ------- -11/Scrapyard -10/Materials (discovered 2 exits: [*Min] / *Sub) -10/Subcaves (discovered 1 exit: [*Mat]) History --------- Turn | Location | Event 6 | -11/Scrapyard | Discovered new exit (range 0) 6 | -11/Scrapyard | Entered Materials 248 | -10/Materials | Discovered new exit (range 8) 309 | -10/Materials | Discovered new exit (range 11) 313 | -10/Materials | Build established: Mutant 328 | -10/Materials | Entered Subcaves 373 | -10/Subcaves | Discovered new exit (range 7) 385 | -10/Subcaves | Visited Clippyterm 390 | -10/Subcaves | Learned Research machine intel 430 | -10/Subcaves | Shifting Twisted Machinery released Mak. Leg 1011 | -10/Subcaves | A Subdweller sparked back to life 1011 | -10/Subcaves | A Subdweller sparked back to life 1011 | -10/Subcaves | A Subdweller sparked back to life 1038 | -10/Subcaves | Core integrity fell below 50% 1049 | -10/Subcaves | Core integrity fell below 20% 1074 | -10/Subcaves | Destroyed by QF-9WI(R) with Subdweller Beam Cannon Last Messages --------------- 00645_ Found 55 Matter. 00646_ Acquired 22 matter. 00648_ Acquired Multitool. 00650_ Acquired Enh. Flamer. 00950_ BR-OWC(R) destroyed. 00952_ Acquired 40 matter. 00956_ Acquired Sub. Optics. 00957_ Subatomizers dissect the Sub. Machine Gun. 00957_ Acquired 10 matter. 00960_ Acquired Sub. Machine Gun. 00964_ Acquired Sub. Monowheel. 01011_ JX-PSH(R) creaks and sparks as it begins to move. 01011_ QF-9WI(R) creaks and sparks as it begins to move. 01011_ N2-K2B(R) creaks and sparks as it begins to move. 01019_ JX-PSH(R) affixes Scrap Shield Fragment to Scrap Shield. 01031_ Lgt. Ion Engine destroyed. 01034_ Sub. Machine Gun destroyed. 01036_ EM Pulse Gun destroyed. 01054_ Lgt. Treads destroyed. 01069_ Assault Rifle destroyed. Map ----- +----------------------------------------------------+ | ?????????????????????????????????????????????????? | | ?????????????????????????????????????????????????? | | ?????????????????????????????????????????????????? | | ?????????????????????????????????????????????????? | | ?????????????????????????????????????????????????? | | ?????????????????????????????????????????????????? | | ?????????????????????????????????????????????????? | | ?????????????????????????????????????????????????? | | ?????????????????????????????????????????????????? | | ?????????????????????????????????????????????????? | | ?????????????????????????????????????????????????? | | ?????????????????????????????????????????????????? | | ?????????????????????????????????????????????????? | | ?????????????????????????????????????????????????? | | ??????????# #??????#####?????????????????????????? | | ??????????# " " # #?????????????????????????? | | ?????????# #?????????????????????????? | | ??????# % % % ## ##????????????????????????? | | ??????# # ????# #????????????????????????? | | ??????????##????????# #???????###### ??????????? | | ????????????????????# "#???????########?????????? | | ?????????????????? #" ######???## ###?????????? | | ??????????????????### #####???## ##?????????? | | ??????????????????# ### ##?### ##?????????? | | ????????????????###" # %##### ##??????????? | | ????????????????# #@ ###### ##??????????? | | ????????????# ## %RRR ##### ##??????????? | | ????????????# < ""#### ##??????????? | | ????????????# ##<# "#### ###??????????? | | ????????????# #??##" "### ####??????????? | | ????????????## #?#### ###### ###???????????? | | ?????????????## #??#### ###### ###??????????? | | ??????????????###???##" &%&#### ###??????????? | | ????????????????????## & # # ##??????????? | | ????????????????????####""" ##??????????? | | ????????????????????######" ##??????????? | | ??????????????????????######## ## ##??????????? | | ????????????????????????######### ##??????????? | | ????????????????????????????### ###???#####??? | | ???????????????????????????### ####??#######?? | | ???????????????????????????### #####?#### ###?? | | ??????????????????????????### ######### ##?? | | ?????????????????????????#### ####### ##?? | | ?????????????????????????### ##### ##?? | | ?????????????????????????## % ### ##?? | | ?????????????????????????## ###?? | | ?????????????????????????### ###??? | | ?????????????????????????#### ## ##???? | | ??????????????????????????#### ### #### | | ???????????????????????????##### ### #### | +----------------------------------------------------+ Best States ------------- Heat Dissipation 25 Energy Generation 10 Energy Capacity 125 Matter Stores 300 Matter Capacity 300 Sight Range 21 Terrain Scan Density 10 Evasion (%) 40 Recoil Reduction 2 Item Schematics ----------------- None Robot Schematics ------------------ None Fabricated ------------ Nothing Repaired ---------- Nothing Alien Tech Used ----------------- None Achievements -------------- None Challenges ------------ None Game ------ Seed ActuatorSystemShockpuncher Manual? 0 Play Time 00:06:40 Cumulative 549.8 hours Start 2025.06.21 @ 14:33:57 End 2025.06.21 @ 14:43:40 Sessions 1 Manual Loads 0 Difficulty Rogue Special Mode None Game No. 663 Rogue 663 Adventurer 0 Explorer 0 Win Type - Total 20 Types 14/0/5/1/0/0/0/0/0/0 Lore% 84 Gallery% 83 Achievement% 83 Wizard Run 0 Options --------- Layout 0 ASCII 0 Keyboard 0 Movement Numpad Keybinds 0 Fullscreen 1 Font 18/SmallcapsGlow Map View 76x50 Zoom Use 0% Tactical HUD 1 Map Filters NONE Filters NONE Steam 1 RUN: 0ca69704-af3c-4d78-a079-28da72f9b2cf